Cogmind - Beta 15 @@@ ROGUE MODE // 2025.05.12 @ 07:24:15 Player: KamenAya Result: Destroyed by Y-45 Defender with Heavy Assault Rifle Performance ------------- Evolutions (1) 500 Regions Visited (3) 600 Robots Destroyed (30) 150 Value Destroyed (582) 582 Prototype IDs (2) 40 Alien Tech Used (0) 0 Bonus (0) 0 TOTAL SCORE: 1872 Bonus ------- None Cogmind --------- Core Integrity 0/400 Matter 232/300 Energy 100/100 System Corruption 0% Temperature Cool (9) Movement Core (50) Location -9/Materials Parts ------- > --- POWER (1) -------- (None) > --- PROPULSION (3) --- (None) > --- UTILITY (2) ------ (None) > --- WEAPON (3) ------- (None) > --- INVENTORY (5) ---- Hacking Suite Peak State ------------ > --- POWER ------------ Ion Engine > --- PROPULSION ------- Wheel Wheel Wheel > --- UTILITY ---------- Structural Scanner Terrain Scanner > --- WEAPON ----------- Beam Cannon Shotgun Light Cannon > --- INVENTORY -------- Assault Rifle Light Cannon Mining Laser [Rating: 10] Favorites ----------- Power Light Ion Engine Engine Light Ion Engine Propulsion Wheel Wheel Wheel Flight Unit Flight Unit Utility Tractor Beam Device Tractor Beam Protection Propulsion Shielding Weapon Assault Rifle Energy Cannon Beam Cannon Ballistic Gun Assault Rifle Ballistic Cannon Light Cannon Launcher Grenade Launcher Special Weapon Mining Laser Build | -11 -10 -10 -9 ------- Run | Yrd Mat Min Mat Slots Evolved 2 | . . . 2 Power . | . . . . Propulsion 1 | . . . 1 Utility . | . . . . Weapon 1 | . . . 1 Parts Attached 22 | 6 6 . 10 Power 3 | 1 1 . 1 Engine 3 | 1 1 . 1 Core . | . . . . Reactor . | . . . . Propulsion 6 | 2 . . 4 Treads . | . . . . Leg . | . . . . Wheel 3 | 2 . . 1 Hover . | . . . . Flight 3 | . . . 3 Utility 4 | 1 1 . 2 Device 3 | 1 . . 2 Storage . | . . . . Processor . | . . . . Hackware . | . . . . Protection 1 | . 1 . . Artifact . | . . . . Weapon 9 | 2 4 . 3 Energy Gun . | . . . . Energy Cannon 1 | . 1 . . Ballistic Gun 4 | 2 . . 2 Ballistic Cannon 2 | . 1 . 1 Launcher 1 | . 1 . . Special Weapon 1 | . 1 . . Impact Weapon . | . . . . Slashing Weapon . | . . . . Piercing Weapon . | . . . . Special Melee Weapon . | . . . . Unidentified Prototypes . | . . . . Parts Lost 15 | . 1 . 14 Power 3 | . 1 . 2 Propulsion 3 | . . . 3 Utility 3 | . . . 3 Weapon 6 | . . . 6 Highest Loss Streak 11 | . 1 . 11 To Critical Strikes . | . . . . Average Backups 2 | . 3 5 3 Power . | . . . . Propulsion . | . . . . Utility . | . . 1 . Weapon 2 | . 2 4 2 Tool/Special . | . . . . Unused Backups 1 | . . . 1 Power . | . . . . Propulsion . | . . . . Utility 1 | . . . 1 Weapon . | . . . . Tool/Special . | . . . . Average Slot Usage (%) 88 | . 91 100 80 Engine 12 | . 14 14 9 Wheel 25 | . 28 28 21 Device 15 | . 14 14 18 Protection 6 | . 6 14 1 Energy Cannon 7 | . 6 6 9 Ballistic Gun 8 | . 18 . 2 Ballistic Cannon 7 | . 2 14 10 Launcher 4 | . . 7 6 Peak Build Rating 10 | 6 7 7 10 Average Rating 6 | 5 6 7 7 On Entrance 5 | . 6 7 7 Naked Turns 18 | . . . 18 Heaviest Build 16 | 8 11 11 16 Greatest Support 30 | 20 20 20 30 Greatest Overweight (x) 4 | . . . 4 Average Overweight (x) . | . . . . Largest Inventory Capacity 5 | 5 5 5 5 Average Capacity 5 | 5 5 5 5 Most Carried 5 | 3 5 5 5 Average Carried 2 | 1 3 5 3 Final Capacity 5 | 5 5 5 5 Final Carried 5 | 1 5 5 1 Class Distribution -------------------- 78% | Mutant 21% | Skirmisher Dominant Class ---------------- Mutant | -10/Materials Mutant | -10/Mines Skirmisher | -9/Materials Resources | -11 -10 -10 -9 ----------- Run | Yrd Mat Min Mat Matter Collected 752 | 272 120 83 277 Remotely 288 | 61 120 83 24 Salvage Created 705 | 96 120 29 460 Parts 56 | 2 13 8 33 Haulers Intercepted . | . . . . Recyclers Shooed 1 | . . . 1 Parts Field Recycled . | . . . . Retrieved Matter . | . . . . Parts Self-Destructed . | . . . . Prevented . | . . . . Kills | -11 -10 -10 -9 ------- Run | Yrd Mat Min Mat Combat Hostiles Destroyed 20 | . 6 3 11 Guns 7 | . 6 . 1 Cannons 9 | . . 3 6 AOE 4 | . . . 4 Classes Destroyed 9 | 1 2 . 6 Worker 1 | . . . 1 Recycler 2 | 1 . . 1 Mechanic 1 | . . . 1 Operator 4 | . 3 . 1 Watcher 2 | . . . 2 Swarmer 12 | . 6 3 3 Grunt 5 | . . . 5 Brawler 2 | . . . 2 Sentry 1 | . . . 1 Best Kill Streak 6 | 1 3 3 6 Combat Bots Only 5 | . 3 3 5 Max Kills in Single Turn 3 | 1 1 2 3 Gunslinging . | . . . . Exploded 1 | . . . 1 Melee . | . . . . Uniques/NPCs Destroyed . | . . . . Combat | -11 -10 -10 -9 -------- Run | Yrd Mat Min Mat Hostile Shots Fired 161 | . 38 11 112 Missed 45 | . 13 4 28 Hits 116 | . 25 7 84 Projectile 116 | . 25 7 84 Critical Strikes 1 | . . . 1 Damage Taken 1441 | . 195 58 1188 Core 443 | . 16 20 407 Absorbed by Shields . | . . . . Redirected to Shielding 1 | . . 1 . Core Remaining (%) 92 | 100 . 85 . Volleys Fired 68 | 2 23 4 39 Largest 3 | 2 2 2 3 Hottest 120 | 40 100 90 120 Shots Fired 142 | 4 45 7 86 Gun 48 | 4 35 . 9 Cannon 85 | . 8 7 70 Launcher 8 | . 1 . 7 Special 1 | . 1 . . Kinetic 91 | 4 37 4 46 Thermal 43 | . 7 3 33 Explosive 8 | . 1 . 7 Electromagnetic . | . . . . Robot Hit Streak 8 | 2 4 2 8 Robot Miss Streak 4 | 2 3 3 4 Penetration Max . | . . . . Secondary Targets 3 | . 3 . . Max Gunslinging Chain 1 | . 1 . . Shots Hit Robots 71 | 2 21 3 45 Core Hits 38 | 2 12 3 21 Critical Kills . | . . . . Critical Parts Destroyed 1 | . 1 . . Critical Strikes 3 | . 1 . 2 Destroy 1 | . 1 . . Blast 2 | . . . 2 Melee Attacks . | . . . . Impact . | . . . . Slashing . | . . . . Piercing . | . . . . Sneak Attacks . | . . . . Combat Hostiles . | . . . . Follow-up Attacks . | . . . . Damage Inflicted 1385 | 26 350 69 940 Guns 345 | 26 228 . 91 Cannons 818 | . 88 69 661 Explosions 222 | . 34 . 188 Melee . | . . . . Ramming . | . . . . Kinetic 848 | 26 247 33 542 Thermal 315 | . 69 36 210 Explosive 222 | . 34 . 188 Electromagnetic . | . . . . Impact . | . . . . Slashing . | . . . . Piercing . | . . . . Highest Corruption . | . . . . Average Corruption . | . . . . Corruption Purged . | . . . . Corruption Blocked . | . . . . Overload Shots . | . . . . Overflow Damage 4 | . . . 4 Projectiles 4 | . . . 4 Explosions . | . . . . Melee . | . . . . Knockbacks 9 | . . 1 8 Impact . | . . . . Kinetic 8 | . . 1 7 Secondary 1 | . . . 1 Self-Inflicted Damage 18 | . . . 18 Shots 1 | . . . 1 Rammed . | . . . . Targets Rammed . | . . . . Kicked . | . . . . Crushed . | . . . . Highest Temperature 264 | 6 36 60 264 Average Temperature 100 | 6 14 28 122 Received Heat Transfer 354 | . 9 . 345 Effects 1 | . . . 1 Interference 1 | . . . 1 Siege Activations . | . . . . Martial Activations . | . . . . Shielding Activations . | . . . . Robots Disrupted . | . . . . Combat Hostiles . | . . . . Robots Corrupted 1 | . . . 1 Combat Hostiles . | . . . . Parts Fried 1 | . . . 1 Impact Corruptions 1 | . . . 1 Robots Melted . | . . . . Combat Hostiles . | . . . . Parts Melted 1 | . . 1 . Heat Transferred 666 | . 148 74 444 Parts Sabotaged . | . . . . Parts Stolen . | . . . . Parts Stripped . | . . . . Power Chain Reactions . | . . . . Alert | -11 -10 -10 -9 ------- Run | Yrd Mat Min Mat Maximum Alert Level 1 | . . . 1 Low Security (%) 95 | 100 100 100 83 Level 1 4 | . . . 16 Level 2 . | . . . . Level 3 . | . . . . Level 4 . | . . . . Level 5 . | . . . . High Security . | . . . . Max Security . | . . . . Peak Influence 219 | 5 101 85 219 Initial 14 | . . 5 14 Average 52 | . 38 27 137 Influence Increases 684 | 5 183 87 409 Destroy 0b10 Robot/C 400 | . 120 60 220 Destroy 0b10 Robot/NC 50 | 5 15 . 30 Destroy Leader 84 | . 20 10 54 Successful Hack 7 | . 5 2 . Disable Machine 60 | . 15 . 45 Destroy Structure 68 | . 8 . 60 Lose Combat Pursuer 15 | . . 15 . Influence Decreases 571 | 5 168 65 333 Entered New Map 33 | . . 10 23 Time Decay 388 | 5 158 55 170 Lost Part 150 | . 10 . 140 Squads Dispatched . | . . . . Investigation . | . . . . Extermination . | . . . . Reinforcement . | . . . . Assault . | . . . . Garrison . | . . . . Intercept . | . . . . Searches Triggered . | . . . . Construction Impeded . | . . . . Haulers Reinforced . | . . . . Active Scanning Responses . | . . . . Cargo Convoy Interrupts . | . . . . Stealth | -11 -10 -10 -9 --------- Run | Yrd Mat Min Mat Distress Signals 4 | . 1 . 3 Communications Jammed . | . . . . Distress Signals . | . . . . Times Spotted 38 | . 16 3 19 Peak Tracking Total 6 | . 4 3 6 Tactical Retreats 1 | . . 1 . Traps | -11 -10 -10 -9 ------- Run | Yrd Mat Min Mat Traps Triggered 1 | . . . 1 Indirectly . | . . . . Trap Hack Attempts . | . . . . Triggered . | . . . . Disarmed . | . . . . Reprogrammed . | . . . . Reused . | . . . . Traps Extracted . | . . . . Installed . | . . . . Triggered . | . . . . Machines | -11 -10 -10 -9 ---------- Run | Yrd Mat Min Mat Machines Disabled 4 | . 1 . 3 Max in Single Turn 2 | . 1 . 2 Machines Repaired . | . . . . Machines Dismantled . | . . . . Machines Sabotaged . | . . . . Overloaded Fab Kills . | . . . . Hacking | -11 -10 -10 -9 --------- Run | Yrd Mat Min Mat Machines Accessed 2 | . 1 1 . Terminals 2 | . 1 1 . Fabricators . | . . . . Repair Stations . | . . . . Recycling Units . | . . . . Scanalyzers . | . . . . Garrison Access . | . . . . Total Hacks 6 | . 3 3 . Successful 4 | . 2 2 . Failed 2 | . 1 1 . Catastrophic . | . . . . Database Lockouts . | . . . . Manual . | . . . . Terminals 6 | . 3 3 . Fabricators . | . . . . Repair Stations . | . . . . Recycling Units . | . . . . Scanalyzers . | . . . . Garrison Access . | . . . . Terminal Hacks 4 | . 2 2 . Record 2 | . . 2 . Prototype ID Bank 1 | . 1 . . Alert Level 1 | . 1 . . Fabricator Hacks . | . . . . Repair Station Hacks . | . . . . Recycling Unit Hacks . | . . . . Scanalyzer . | . . . . Garrison Access Hacks . | . . . . Unauthorized Hacks . | . . . . Terminals . | . . . . Fabricators . | . . . . Repair Stations . | . . . . Recycling Units . | . . . . Scanalyzers . | . . . . Garrison Access . | . . . . Data Cores Recovered 3 | . 3 . . Used . | . . . . Hacking Detections 2 | . 1 1 . Full Trace Events 2 | . 1 1 . Feedback Events . | . . . . Feedback Blocked . | . . . . Robot Schematics Acquired . | . . . . Robots Built . | . . . . Authchips . | . . . . Time . | . . . . Total Robot Build Rating . | . . . . Part Schematics Acquired . | . . . . Parts Built . | . . . . Authchips . | . . . . Time . | . . . . Total Part Build Rating . | . . . . Parts Repaired . | . . . . Time . | . . . . Parts Recycled . | . . . . Recycled Matter . | . . . . Retrieved Matter . | . . . . Retrieved Components . | . . . . Parts Scanalyzed . | . . . . Part Schematics Acquired . | . . . . Parts Damaged . | . . . . Bothacking | -11 -10 -10 -9 ------------ Run | Yrd Mat Min Mat Used RIF Installer . | . . . . Robots Hacked . | . . . . Non-combat . | . . . . Combat . | . . . . Robot Hacks Applied . | . . . . Relay Couplers Released . | . . . . Fabnet Peak Effective % . | . . . . Robots Rewired . | . . . . Allies Hacked . | . . . . Hacks Repelled . | . . . . Allies | -11 -10 -10 -9 -------- Run | Yrd Mat Min Mat Total Allies . | . . . . Largest Group . | . . . . Highest-Rated Group . | . . . . Highest-Rated Ally . | . . . . Total Orders . | . . . . Ally Attacks . | . . . . Total Damage . | . . . . Kills . | . . . . Allies Corrupted . | . . . . Allies Melted . | . . . . Intel | -11 -10 -10 -9 ------- Run | Yrd Mat Min Mat Active Infowar (turns) 353 | . . . 353 Terrain 253 | . . . 253 Structural 310 | . . . 310 Robot Analysis Total . | . . . . Derelict Logs Recovered . | . . . . Drone Launches . | . . . . Drone Recoveries . | . . . . Exploration | -11 -10 -10 -9 ------------- Run | Yrd Mat Min Mat Turns Passed 1552 | 489 406 227 430 Spaces Moved 858 | 96 355 135 272 Core 21 | 4 . . 17 Treads . | . . . . Legs . | . . . . Wheels 834 | 92 355 135 252 Hover . | . . . . Flight 3 | . . . 3 Fastest Speed 50 | 50 80 80 80 Average Speed 83 | 78 80 80 91 Slowest Speed 250 | 80 80 80 250 Overloaded Moves . | . . . . Propulsion Burnouts . | . . . . Robots Hopped . | . . . . Potential Cave-ins . | . . . . Cave-ins Triggered . | . . . . Exploration Rate (%) 34 | 10 56 36 34 Regions Visited 3 Branch Regions 1 Pre-discovered Areas . | . . . . Known Exits Taken . | . . . . Unknown Exits Taken 3 | 1 1 1 . Scrap Searched 1 | . . 1 . Spaces Dug . | . . . . Terrain Destroyed 73 | . 6 . 67 Melee . | . . . . Projectile . | . . . . AOE 73 | . 6 . 67 Terrain Rammed . | . . . . Walls Destroyed . | . . . . Machines Disabled . | . . . . Actions | -11 -10 -10 -9 --------- Run | Yrd Mat Min Mat Total 1560 | 505 429 246 380 Wait 574 | 395 35 107 37 Move 855 | 95 354 134 272 Hop . | . . . . Pick Up 24 | 7 8 . 9 Fast Attach 3 | . . . 3 Attach 21 | 6 3 . 12 Detach 1 | . 1 . . Swap 5 | . 3 1 1 Drop 9 | . 2 . 7 Fire 68 | 2 23 4 39 Melee . | . . . . Ram . | . . . . Kick . | . . . . Crush . | . . . . Escape Stasis . | . . . . Rewire . | . . . . Trap . | . . . . Miscellaneous . | . . . . Route ------- -11/Scrapyard -10/Materials (discovered 4 exits: *Mat x2 / *Min x2) -10/Mines -9/Materials (discovered 1 exit: [*Min]) History --------- Turn | Location | Event 20 | -11/Scrapyard | Discovered new exit (range 16) 490 | -11/Scrapyard | Entered Materials 491 | -10/Materials | Build established: Mutant 565 | -10/Materials | Discovered new exit (range 7) 573 | -10/Materials | Discovered new exit (range 13) 683 | -10/Materials | Discovered new exit (range 7) 804 | -10/Materials | Discovered new exit (range 8) 896 | -10/Materials | Entered Mines 1111 | -10/Mines | Discovered new exit (range 9) 1123 | -10/Mines | Entered Materials 1123 | -9/Materials | Evolved 2 slots: Propulsion x1, Weapon x1 1411 | -9/Materials | Discovered new exit (range 16) 1539 | -9/Materials | Core integrity fell below 50% 1548 | -9/Materials | Core integrity fell below 20% 1553 | -9/Materials | Destroyed by Y-45 Defender with Heavy Assault Rifle Last Messages --------------- 01493_ Beam Cannon destroyed. 01494_ Overheating: System interference. 01494_ Structural Scanner temporarily disabled. 01494_ G-34 Mercenary destroyed. 01497_ K-01 Serf collects debris. 01517_ Mining Laser destroyed. 01520_ Shotgun destroyed. 01523_ Structural Scanner destroyed. 01523_ Y-45 Defender Heat Sink blasted off. 01525_ K-01 Serf collects debris. 01529_ Ion Engine destroyed. 01531_ U-05 Engineer builds a Door. 01532_ Terrain Scanner destroyed. 01535_ Lgt. Cannon destroyed. 01537_ R-06 Scavenger collects Heat Sink. 01540_ R-06 Scavenger collects Beam Rifle. 01544_ R-06 Scavenger collects Heat Sink. 01547_ R-06 Scavenger collects Lgt. Treads. 01549_ Y-45 Defender heat damages core (-7). 01550_ R-06 Scavenger collects Lgt. Treads. Map ----- +----------------------------------------------------+ | ?????????????????????????????## ???? ##????????? | | ?????????????????????????????## """ ##########? | | ?????????????????????????????## """ ##########? | | ????????????????????#?????#??## # ##? | | ????????????????????????####### """ # """ ##? | | ????????????????????????####### """ # """ ##? | | ???????????????????#??? # """ / # """ ##? | | ?????????????????????????""" ? # ##? | | ?????????????###????????"""""??####+####=""" ##? | | ?????????????## ??????? """"" ### * *+ """ ### | | ?????????????## ???? """"" ### ! ###/""" ### | | ?????????????## ?? + """ +[ =### ## | | ?????????????## ? # ! #### ### ## | | ?????????????## ? # = [#### %### ## | | ?????????????### ############## ##+######## | | ???????????#??## ###### = # | | ??????????????## * = + | | ?????????????### [ u ! # | | ?????????????### % !! ##### ####### ### | | ????????????? # %= [!! ################ # | | ????????????? # [!! # ? ###?#### # | | ????????????? # /% # ??? "???#???## ## # | | ????????????? # # ?????"??#???######## | | ????????????? # ![ # ?"" ?S??????#????### | | ????????????? ## #####%Y # ????????#?????????## | | ????????????? ## #####@ %# ??"???????????#???## | | ????????????? ## ???##r u# """ ? ???#???????## | | ??????????? ? + ????## + """ ???#?##??????## | | ????????????""## ????## # !#??????????## | | ????????????T"## ?????## r ### ######??#???????## | | ??????????????## ?????"" ####????????##?????## | | ??????????????## ??????? ##??#?????????????### | | ??????????????## ??????? ##????????????????### | | ???????????????????????? < ##????????????????## | | ???????????????????????! ##?????????? ####### | | ??????????????????????? ##?????????? ####### | | ???????????????????????"" ##?????????? # | | ???????????????????????## ###?????????? # | | ????????????????????????? #???????????? + " " | | ????????????????????????? #???????????? # """" | | ????????????????????????? #???????????? # """ | | ????????????????????????? #???????????? ## | | ????????????????????????? ????????????? ## | | ??????????????????????????????????????????## | | ??????????????????????????????????????????## | | ?????????????????????????????????????####### | | ?????????????????????????????????????####### | | ?????????????????????????????????????## # | | ?????????????????????????????????????## # ### | | ?????????????????????????????????????## # ### | +----------------------------------------------------+ Best States ------------- Heat Dissipation 28 Energy Generation 10 Energy Capacity 250 Matter Stores 300 Matter Capacity 300 Sight Range 16 Terrain Scan Range 14 Terrain Scan Density 10 Propulsion Shielding 33 Evasion (%) 44 Item Schematics ----------------- None Robot Schematics ------------------ None Fabricated ------------ Nothing Repaired ---------- Nothing Alien Tech Used ----------------- None Achievements -------------- None Challenges ------------ None Game ------ Seed LatentBiocellDisintegrator Manual? 0 Play Time 00:17:15 Cumulative 7.9 hours Start 2025.05.12 @ 07:09:04 End 2025.05.12 @ 07:24:15 Sessions 1 Manual Loads 0 Difficulty Rogue Special Mode None Game No. 14 Rogue 14 Adventurer 0 Explorer 0 Win Type - Total 0 Types 0/0/0/0/0/0/0/0/0/0 Lore% 5 Gallery% 14 Achievement% 16 Wizard Run 0 Options --------- Layout 1 ASCII 0 Keyboard 0 Movement Mouse Keybinds 0 Fullscreen 2 Font 24/Smallcaps Map View 50x35 Zoom Use 0% Tactical HUD 1 Map Filters NONE Filters NONE Steam 1 RUN: b4e8c13b-60a9-4bab-805b-3c186d3723f2